Cogmind - Beta 14 *** ADVENTURER MODE // 2024.08.10 @ 15:10:01 Player: C23 Result: Destroyed self with Subdweller Shrapnel Launcher Performance ------------- Evolutions (0) 0 Regions Visited (3) 600 Robots Destroyed (24) 120 Value Destroyed (874) 874 Prototype IDs (0) 0 Alien Tech Used (0) 0 Bonus (0) 0 TOTAL SCORE: 1594 Bonus ------- None Cogmind --------- Core Integrity 0/250 Matter 170/300 Energy 100/100 System Corruption 0% Temperature Cool (0) Movement Core (350) Ox6 Location -10/Subcaves Parts ------- > --- POWER (1) -------- (None) > --- PROPULSION (2) --- (None) > --- UTILITY (2) ------ Medium Storage Unit Core Shielding > --- WEAPON (2) ------- Subdweller Shrapnel Launcher > --- INVENTORY (10) --- Light Ion Engine Makeshift Power Source Flight Unit Flight Unit Flight Unit Structural Scanner Light Armor Plating Light Armor Plating Light Assault Rifle Peak State ------------ > --- POWER ------------ Light Nuclear Core > --- PROPULSION ------- Aluminum Leg Makeshift Leg > --- UTILITY ---------- Medium Storage Unit Core Shielding > --- WEAPON ----------- Light Assault Rifle Grenade Launcher > --- INVENTORY -------- Light Ion Engine Light Ion Engine Aluminum Leg Flight Unit Flight Unit Flight Unit Structural Scanner Light Armor Plating Light Armor Plating Light Assault Rifle [Rating: 13] Favorites ----------- Power Light Nuclear Core Engine Ion Engine Power Core Light Nuclear Core Propulsion Aluminum Leg Treads Light Treads Leg Aluminum Leg Flight Unit Flight Unit Utility Medium Storage Unit Device Structural Scanner Storage Medium Storage Unit Protection Core Shielding Weapon Light Assault Rifle Energy Gun EM Pulse Gun Ballistic Gun Light Assault Rifle Launcher Grenade Launcher Build | -11 -10 -10 -10 ------- Run | Yrd Mat Min Sub Slots Evolved . | . . . . Power . | . . . . Propulsion . | . . . . Utility . | . . . . Weapon . | . . . . Parts Attached 27 | 6 10 2 9 Power 3 | 1 . 1 1 Engine 2 | 1 . . 1 Core 1 | . . 1 . Reactor . | . . . . Propulsion 9 | 2 6 . 1 Treads 4 | 2 2 . . Leg 3 | . 2 . 1 Wheel . | . . . . Hover . | . . . . Flight 2 | . 2 . . Utility 5 | 1 3 . 1 Device 1 | . 1 . . Storage 2 | 1 1 . . Processor . | . . . . Hackware . | . . . . Protection 2 | . 1 . 1 Artifact . | . . . . Weapon 10 | 2 1 1 6 Energy Gun 1 | 1 . . . Energy Cannon . | . . . . Ballistic Gun 4 | 1 1 1 1 Ballistic Cannon . | . . . . Launcher 5 | . . . 5 Special Weapon . | . . . . Impact Weapon . | . . . . Slashing Weapon . | . . . . Piercing Weapon . | . . . . Special Melee Weapon . | . . . . Unidentified Prototypes . | . . . . Parts Lost 9 | . . 2 7 Power 3 | . . 1 2 Propulsion 2 | . . . 2 Utility . | . . . . Weapon 4 | . . 1 3 Highest Loss Streak 3 | . . 2 3 To Critical Strikes . | . . . . Average Slot Usage (%) 98 | . 96 99 98 Engine 5 | . 14 1 . Core 8 | . . 12 13 Treads 7 | . 21 . . Leg 19 | . 6 28 27 Storage 14 | . 14 14 14 Protection 12 | . 9 14 14 Ballistic Gun 21 | . 26 27 15 Launcher 5 | . . . 12 Peak Build Rating 13 | 6 8 10 13 Average Rating 9 | 4 7 9 10 On Entrance 6 | . 6 8 10 Naked Turns . | . . . . Heaviest Build 21 | 13 19 19 21 Greatest Support 40 | 40 40 20 30 Greatest Overweight (x) 1 | . 1 . 1 Average Overweight (x) . | . . . . Largest Inventory Capacity 10 | 8 10 10 10 Average Capacity 9 | 7 9 10 10 Most Carried 10 | 3 10 10 10 Average Carried 8 | 1 6 9 9 Final Capacity 10 | 8 10 10 10 Final Carried 10 | 1 10 10 9 Class Distribution -------------------- 100% | Mutant Dominant Class ---------------- Mutant | -10/Materials Mutant | -10/Mines Mutant | -10/Subcaves Resources | -11 -10 -10 -10 ----------- Run | Yrd Mat Min Sub Matter Collected 785 | 189 325 43 228 Remotely . | . . . . Salvage Created 806 | . 546 119 141 Parts 54 | . 35 4 15 Haulers Intercepted . | . . . . Recyclers Shooed . | . . . . Parts Field Recycled . | . . . . Retrieved Matter . | . . . . Parts Self-Destructed 2 | . . . 2 Prevented . | . . . . Kills | -11 -10 -10 -10 ------- Run | Yrd Mat Min Sub Combat Hostiles Destroyed 23 | . 13 2 8 Guns 16 | . 13 2 1 AOE 7 | . . . 7 Classes Destroyed 4 | . 3 . 1 Watcher 1 | . 1 . . Swarmer 1 | . 1 . . Grunt 14 | . 12 2 . Subdweller 8 | . . . 8 Best Kill Streak 3 | . 2 1 3 Combat Bots Only 3 | . 2 1 3 Max Kills in Single Turn 1 | . 1 1 1 Gunslinging . | . . . . Exploded 1 | . . . 1 Melee . | . . . . Uniques/NPCs Destroyed . | . . . . Combat | -11 -10 -10 -10 -------- Run | Yrd Mat Min Sub Hostile Shots Fired 132 | . 82 18 32 Missed 43 | . 29 6 8 Damage Taken 1406 | . 497 149 760 Core 259 | . 63 28 168 Absorbed by Shields . | . . . . Redirected to Shielding 42 | . 6 6 30 Ignored by Resistances 389 | . 153 42 194 Core Remaining (%) 100 | 100 . . . Volleys Fired 91 | . 47 16 28 Largest 2 | . 2 2 2 Hottest 60 | . 60 40 60 Shots Fired 169 | . 94 23 52 Gun 148 | . 94 23 31 Cannon . | . . . . Launcher 21 | . . . 21 Special . | . . . . Kinetic 143 | . 84 23 36 Thermal . | . . . . Explosive 16 | . . . 16 Electromagnetic 10 | . 10 . . Robot Hit Streak 38 | . 38 9 31 Robot Miss Streak 2 | . 2 1 1 Penetration Max . | . . . . Secondary Targets . | . . . . Shots Hit Robots 137 | . 72 18 47 Core Hits 53 | . 25 7 21 Critical Kills 1 | . 1 . . Critical Parts Destroyed . | . . . . Critical Strikes 1 | . 1 . . Destroy 1 | . 1 . . Melee Attacks . | . . . . Impact . | . . . . Slashing . | . . . . Piercing . | . . . . Sneak Attacks . | . . . . Combat Hostiles . | . . . . Follow-up Attacks . | . . . . Damage Inflicted 2382 | . 812 153 1417 Guns 1165 | . 812 153 200 Cannons . | . . . . Explosions 1217 | . . . 1217 Melee . | . . . . Ramming . | . . . . Kinetic 1386 | . 692 153 541 Thermal . | . . . . Explosive 876 | . . . 876 Electromagnetic 120 | . 120 . . Impact . | . . . . Slashing . | . . . . Piercing . | . . . . Highest Corruption . | . . . . Average Corruption . | . . . . Corruption Purged . | . . . . Corruption Blocked . | . . . . Overload Shots . | . . . . Overflow Damage 23 | . . . 23 Projectiles . | . . . . Explosions 23 | . . . 23 Melee . | . . . . Knockbacks . | . . . . Impact . | . . . . Kinetic . | . . . . Secondary . | . . . . Self-Inflicted Damage 246 | . . . 246 Shots 7 | . . . 7 Rammed . | . . . . Targets Rammed . | . . . . Kicked . | . . . . Crushed . | . . . . Highest Temperature 130 | . 130 9 2 Average Temperature 28 | . 33 7 2 Received Heat Transfer 510 | . 294 108 108 Siege Activations . | . . . . Robots Corrupted . | . . . . Combat Hostiles . | . . . . Parts Fried 1 | . 1 . . Impact Corruptions . | . . . . Robots Melted . | . . . . Combat Hostiles . | . . . . Parts Melted . | . . . . Heat Transferred . | . . . . Parts Sabotaged . | . . . . Parts Stolen . | . . . . Parts Stripped . | . . . . Power Chain Reactions . | . . . . Alert | -11 -10 -10 -10 ------- Run | Yrd Mat Min Sub Peak Influence 190 | . 190 35 . Initial . | . . . . Average 55 | . 77 18 . Maximum Alert Level . | . . . . Low Security (%) 100 | 100 100 100 . Level 1 . | . . . . Level 2 . | . . . . Level 3 . | . . . . Level 4 . | . . . . Level 5 . | . . . . High Security . | . . . . Max Security . | . . . . Squads Dispatched 2 | . 2 . . Investigation 2 | . 2 . . Extermination . | . . . . Reinforcement . | . . . . Assault . | . . . . Garrison . | . . . . Intercept . | . . . . Searches Triggered . | . . . . Construction Impeded . | . . . . Haulers Reinforced . | . . . . Active Scanning Responses . | . . . . Cargo Convoy Interrupts . | . . . . Stealth | -11 -10 -10 -10 --------- Run | Yrd Mat Min Sub Distress Signals 2 | . 2 . . Communications Jammed . | . . . . Distress Signals . | . . . . Times Spotted 38 | . 27 2 9 Peak Tracking Total 4 | . 4 2 2 Tactical Retreats 2 | . 2 . . Traps | -11 -10 -10 -10 ------- Run | Yrd Mat Min Sub Traps Triggered 4 | . 2 . 2 Indirectly . | . . . . Trap Hack Attempts . | . . . . Triggered . | . . . . Disarmed 6 | . 6 . . Reprogrammed . | . . . . Reused . | . . . . Traps Extracted . | . . . . Installed . | . . . . Triggered . | . . . . Machines | -11 -10 -10 -10 ---------- Run | Yrd Mat Min Sub Machines Disabled . | . . . . Max in Single Turn . | . . . . Machines Repaired . | . . . . Machines Dismantled . | . . . . Machines Sabotaged . | . . . . Overloaded Fab Kills . | . . . . Hacking | -11 -10 -10 -10 --------- Run | Yrd Mat Min Sub Machines Accessed 5 | . 5 . . Terminals 3 | . 3 . . Fabricators . | . . . . Repair Stations . | . . . . Recycling Units 2 | . 2 . . Scanalyzers . | . . . . Garrison Access . | . . . . Total Hacks 9 | . 9 . . Successful 6 | . 6 . . Failed 3 | . 3 . . Catastrophic . | . . . . Database Lockouts . | . . . . Manual 3 | . 3 . . Terminals 6 | . 6 . . Fabricators . | . . . . Repair Stations . | . . . . Recycling Units 3 | . 3 . . Scanalyzers . | . . . . Garrison Access . | . . . . Terminal Hacks 3 | . 3 . . Alert Level 1 | . 1 . . Locate Traps 1 | . 1 . . Disarm Traps 1 | . 1 . . Fabricator Hacks . | . . . . Repair Station Hacks . | . . . . Recycling Unit Hacks 3 | . 3 . . Report Inventory 2 | . 2 . . Retrieve Components 1 | . 1 . . Scanalyzer . | . . . . Garrison Access Hacks . | . . . . Unauthorized Hacks . | . . . . Terminals . | . . . . Fabricators . | . . . . Repair Stations . | . . . . Recycling Units . | . . . . Scanalyzers . | . . . . Garrison Access . | . . . . Data Cores Recovered . | . . . . Used . | . . . . Hacking Detections 3 | . 3 . . Full Trace Events . | . . . . Feedback Events . | . . . . Feedback Blocked . | . . . . Robot Schematics Acquired . | . . . . Robots Built . | . . . . Authchips . | . . . . Time . | . . . . Total Robot Build Rating . | . . . . Part Schematics Acquired . | . . . . Parts Built . | . . . . Authchips . | . . . . Time . | . . . . Total Part Build Rating . | . . . . Parts Repaired . | . . . . Time . | . . . . Parts Recycled . | . . . . Recycled Matter . | . . . . Retrieved Matter . | . . . . Retrieved Components 3 | . 3 . . Parts Scanalyzed . | . . . . Part Schematics Acquired . | . . . . Parts Damaged . | . . . . Bothacking | -11 -10 -10 -10 ------------ Run | Yrd Mat Min Sub Used RIF Installer . | . . . . Robots Hacked . | . . . . Non-combat . | . . . . Combat . | . . . . Robot Hacks Applied . | . . . . Relay Couplers Released . | . . . . Fabnet Peak Effective % . | . . . . Robots Rewired . | . . . . Allies Hacked . | . . . . Hacks Repelled . | . . . . Allies | -11 -10 -10 -10 -------- Run | Yrd Mat Min Sub Total Allies . | . . . . Largest Group . | . . . . Highest-Rated Group . | . . . . Highest-Rated Ally . | . . . . Total Orders . | . . . . Ally Attacks . | . . . . Total Damage . | . . . . Kills . | . . . . Allies Corrupted . | . . . . Allies Melted . | . . . . Intel | -11 -10 -10 -10 ------- Run | Yrd Mat Min Sub Robot Analysis Total . | . . . . Derelict Logs Recovered 4 | . . 2 2 Drone Launches . | . . . . Drone Recoveries . | . . . . Exploration | -11 -10 -10 -10 ------------- Run | Yrd Mat Min Sub Turns Passed 3602 | 63 1285 671 1583 Spaces Moved 2267 | 37 707 480 1043 Core 7 | 7 . . . Treads 509 | 30 479 . . Legs 1751 | . 228 480 1043 Wheels . | . . . . Hover . | . . . . Flight . | . . . . Fastest Speed 50 | 50 120 120 120 Average Speed 138 | 139 147 120 140 Slowest Speed 190 | 160 190 120 190 Overloaded Moves . | . . . . Propulsion Burnouts . | . . . . Robots Hopped . | . . . . Cave-ins Triggered . | . . . . Exploration Rate (%) 68 | 3 96 99 76 Regions Visited 3 Branch Regions 2 Pre-discovered Areas 1 | . . . 1 Known Exits Taken . | . . . . Unknown Exits Taken 3 | 1 1 1 . Scrap Searched 6 | . . 1 5 Spaces Dug . | . . . . Terrain Destroyed 100 | . . . 100 Melee . | . . . . Projectile . | . . . . AOE 100 | . . . 100 Terrain Rammed . | . . . . Walls Destroyed . | . . . . Machines Disabled . | . . . . Actions | -11 -10 -10 -10 --------- Run | Yrd Mat Min Sub Total 2582 | 49 864 556 1113 Wait 167 | . 85 54 28 Move 2264 | 36 706 479 1043 Hop . | . . . . Pick Up 25 | 7 12 3 3 Fast Attach 3 | . 2 . 1 Attach 12 | 6 1 2 3 Detach . | . . . . Swap 12 | . 7 . 5 Drop 7 | . 4 1 2 Fire 91 | . 47 16 28 Melee . | . . . . Ram . | . . . . Kick . | . . . . Crush . | . . . . Escape Stasis . | . . . . Rewire 1 | . . 1 . Trap . | . . . . Miscellaneous . | . . . . Route ------- -11/Scrapyard -10/Materials (discovered 5 exits: [*Mat x3] / [*Min x2]) -10/Mines (discovered 3 exits: [*Mat x2] / [*Sub]) -10/Subcaves (discovered 1 exit: [*Mat]) History --------- Turn | Location | Event 26 | -11/Scrapyard | Discovered new exit (range 15) 64 | -11/Scrapyard | Entered Materials 307 | -10/Materials | Build established: Mutant 454 | -10/Materials | Discovered new exit (range 11) 847 | -10/Materials | Discovered new exit (range 10) 1065 | -10/Materials | Discovered new exit (range 3) 1182 | -10/Materials | Discovered new exit (range 16) 1278 | -10/Materials | Discovered new exit (range 13) 1349 | -10/Materials | Entered Mines 1361 | -10/Mines | Met a Derelict bent on vengeance 1680 | -10/Mines | Discovered new exit (range 7) 1788 | -10/Mines | Discovered new exit (range 8) 1837 | -10/Mines | Discovered new exit (range 9) 1845 | -10/Mines | Learned Materials emergency access door positions 1897 | -10/Mines | Received a Rocket Launcher from a helpful Derelict 1978 | -10/Mines | Learned Materials terminal intel 2020 | -10/Mines | Entered Subcaves 2603 | -10/Subcaves | A swath of the cavern ceiling suddenly collapsed 2851 | -10/Subcaves | Core integrity fell below 50% 3068 | -10/Subcaves | Learned location of Recycling (-9) 3068 | -10/Subcaves | Discovered new exit (range 4) 3180 | -10/Subcaves | Learned Materials garrison access intel 3305 | -10/Subcaves | Shifting Twisted Machinery released Sub. Laser 3316 | -10/Subcaves | Shifting Twisted Machinery released Battle Rifle 3559 | -10/Subcaves | Lost 3 parts (1p1n1w) 3597 | -10/Subcaves | Ambushed by Subdweller buried in earth 3601 | -10/Subcaves | Core integrity fell below 20% 3603 | -10/Subcaves | Destroyed self with Subdweller Shrapnel Launcher Last Messages --------------- Machinery. A2-GTK(R) destroyed. Lgt. Nuclear Core destroyed. Grenade Launcher destroyed. Mak. Leg destroyed. O0-7E1(R) destroyed. 8S-JKN(R) angrily emerges from the Twisted Machinery. Acquired Sub. Shrapnel Launcher. 8S-JKN(R): "SUBSUUUUUB!" Acquired 18 matter. The unstable cave ceiling collapses. Aluminum Leg destroyed. Destroyed Aluminum Leg. TH-Z1F(R): "HIDIE!" Destroyed Scrap Shield. Lgt. Assault Rifle destroyed. 8S-JKN(R) destroyed. Lgt. Ion Engine destroyed. Destroyed Lgt. Ion Engine. Map ----- +----------------------------------------------------+ | ####?# #?????????????????????????????? | | ## #????## ##????????????????????????????? | | #### ##???## #????????????????????????????? | | #### ##???## #????????????????????????????? | | ### ##???## ##????????????????????????????? | | ?# ##???## #?????????????????????????????? | | ?# #????# ##?????????????????????????????? | | ?# ##???# #??????????????????????????????? | | ?# ##???# #?????????????????????????????? | | ?###?????# #????????###??????????????????? | | ?????????# ## ##???????## ###????????????????? | | ?????????##?#######?????##?# #????????????????? | | ??????????????????###??## ## ####????????????????? | | ??????????????????#" ##" #???????????????????? | | ????????????????????# ##??????????????????? | | ????????????????????##"#" #??????????????????? | | ??????????????????????## #??????????????????? | | ??????????????????????# ##?????????????????? | | ??????????????????????#### #?????????????????? | | ?????????????????????##### ###?????????????????? | | ?????????????????????# #?????????????????? | | ?????????????????????# #?????????????????? | | ?????????????????????# #?????????????????? | | ????????????????????## #?????????????????? | | ????????????????????# % #?????????????????? | | ????????????????###### R@ #?????????????????? | | ?????????######## ## #?????????????????? | | ????????## # #?????????????????? | | ???????## ] ##????????????????? | | ???????# #????????????????? | | # ## ## ### #????????????????? | | ####O #????????????????? | | #?# ### ?????????????? | | # # ## #?## ##?? ???????????? | | ????## ?## ###??# #??? # # ???????????? | | ?????#### #???# #???######?##???????????? | | ??????# #???# ##???????????????????????? | | ??????# ##???## #????????????????????????? | | ?????## ##?????########????????????????????????? | | ?????# ######?????????????????????????????????? | | ????## ##????????????????????????????????? | | ???## ##???????????????????????????????? | | ??## ##????##????????????????????????? | | ## ### ##??# #????????????????????????? | | ##?## ### #????????????????????????? | | ## #???## #????????????????????????? | | ?# ##??### ##????????????????????????? | | ?###???# ! ##?????????????????????????? | | ??????## #??????????????????????????? | | ?????## ##??###????????????????????? | +----------------------------------------------------+ Best States ------------- Heat Dissipation 25 Energy Generation 14 Energy Capacity 250 Matter Stores 300 Matter Capacity 300 Sight Range 16 Terrain Scan Density 10 Resistance: KI 20 Resistance: TH 20 Resistance: EX 20 Resistance: EM 20 Resistance: I 20 Resistance: S 20 Resistance: P 20 Core Shielding 20 Evasion (%) 55 Recoil Reduction 2 Offensive Hacking 10 Item Schematics ----------------- None Robot Schematics ------------------ None Fabricated ------------ Nothing Alien Tech Used ----------------- None Achievements -------------- None Challenges ------------ None Game ------ Seed TractorIntegratedScythe Manual? 0 Play Time 00:39:27 Cumulative 16.9 hours Start 2024.08.10 @ 08:31:52 End 2024.08.10 @ 15:10:01 Sessions 3 Manual Loads 0 Difficulty Adventurer Special Mode None Game No. 16 Rogue 4 Adventurer 12 Explorer 0 Win Type - Total 0 Types 0/0/0/0/0/0/0/0/0 Lore% 8 Gallery% 19 Achievement% 16 Wizard Run 0 Options --------- Layout 1 ASCII 0 Keyboard 0 Movement Mouse Keybinds 0 Fullscreen 1 Font 16/SmallcapsGlow Map View 50x40 Zoom Use 0% Tactical HUD 0 Map Filters NONE Filters NONE Steam SD RUN: ee52fd05-c86d-43ef-91a5-a7f358028072